[Event "Titled Tuesday Blitz July 4 Late 2023"]
[White "Carlsen, Magnus"]
[Black "lagarto93"]
[WhiteFideId "1503014"]
[WhiteElo "3252"]
[BlackElo "2512"]
[Result "1-0"]
[Round "1"]
[TimeControl "180+2"]
[Date "2023.07.04"]
[WhiteClock "0:00:46"]
[BlackClock "0:00:21"]
[Board "1"]

1. f4 {[%clk 0:02:57]}  e6 {[%clk 0:02:58]} 2. e4 {[%clk 0:02:52]}  d5 {[%clk 0:02:57]} 3. e5 {[%clk 0:02:52]}  c5 {[%clk 0:02:57]} 4. Nf3 {[%clk 0:02:52]}  Nc6 {[%clk 0:02:57]} 5. c3 {[%clk 0:02:52]}  Nh6 {[%clk 0:02:58]} 6. Na3 {[%clk 0:02:52]}  Be7 {[%clk 0:02:57]} 7. Nc2 {[%clk 0:02:52]}  Nf5 {[%clk 0:02:57]} 8. d4 {[%clk 0:02:52]}  cxd4 {[%clk 0:02:56]} 9. cxd4 {[%clk 0:02:53]}  Qb6 {[%clk 0:02:56]} 10. Bd3 {[%clk 0:02:53]}  Nh4 {[%clk 0:02:52]} 11. Nxh4 {[%clk 0:02:48]}  Bxh4+ {[%clk 0:02:53]} 12. g3 {[%clk 0:02:48]}  Be7 {[%clk 0:02:53]} 13. O-O {[%clk 0:02:48]}  Bd7 {[%clk 0:02:52]} 14. a3 {[%clk 0:02:30]}  a5 {[%clk 0:02:42]} 15. Rb1 {[%clk 0:02:27]}  a4 {[%clk 0:02:35]} 16. Be3 {[%clk 0:02:25]}  O-O {[%clk 0:02:30]} 17. Bf2 {[%clk 0:02:24]}  f5 {[%clk 0:02:26]} 18. g4 {[%clk 0:02:23]}  g6 {[%clk 0:02:24]} 19. Kh1 {[%clk 0:02:23]}  Kh8 {[%clk 0:02:18]} 20. Rg1 {[%clk 0:02:22]}  Rf7 {[%clk 0:02:15]} 21. gxf5 {[%clk 0:02:23]}  exf5 {[%clk 0:02:15]} 22. h4 {[%clk 0:02:22]}  Rg8 {[%clk 0:02:10]} 23. h5 {[%clk 0:02:21]}  g5 {[%clk 0:02:10]} 24. fxg5 {[%clk 0:02:20]}  Bxg5 {[%clk 0:02:08]} 25. Qf3 {[%clk 0:02:21]}  Be6 {[%clk 0:02:08]} 26. Rg2 {[%clk 0:02:13]}  h6 {[%clk 0:02:03]} 27. Be3 {[%clk 0:02:05]}  f4 {[%clk 0:01:54]} 28. Bf2 {[%clk 0:02:05]}  Rff8 {[%clk 0:01:41]} 29. Kh2 {[%clk 0:01:44]}  Ne7 {[%clk 0:01:40]} 30. Nb4 {[%clk 0:01:43]}  Qd8 {[%clk 0:01:38]} 31. Rbg1 {[%clk 0:01:39]}  Nf5 {[%clk 0:01:37]} 32. Bxf5 {[%clk 0:01:37]}  Rxf5 {[%clk 0:01:36]} 33. Kh1 {[%clk 0:01:34]}  Rff8 {[%clk 0:01:25]} 34. Be1 {[%clk 0:01:30]}  Qd7 {[%clk 0:01:23]} 35. Kh2 {[%clk 0:01:25]}  Qf7 {[%clk 0:01:11]} 36. Bd2 {[%clk 0:01:20]}  Rd8 {[%clk 0:01:08]} 37. Rf2 {[%clk 0:01:16]}  Rdf8 {[%clk 0:01:07]} 38. Nd3 {[%clk 0:01:10]}  Bf5 {[%clk 0:01:02]} 39. Nxf4 {[%clk 0:00:51]}  Be4 {[%clk 0:01:01]} 40. Qh3 {[%clk 0:00:50]}  Bf5 {[%clk 0:00:44]} 41. Ng6+ {[%clk 0:00:45]}  Qxg6 {[%clk 0:00:41]} 42. hxg6 {[%clk 0:00:46]}  Bxh3 {[%clk 0:00:41]} 43. Rxf8 {[%clk 0:00:46]}  Rxf8 {[%clk 0:00:34]} 44. Kxh3 {[%clk 0:00:47]}  Rf3+ {[%clk 0:00:21]} 45. Kg4 {[%clk 0:00:46]} 1-0


[Site "https://www.chess.com"]

[Event "Titled Tuesday Blitz July 4 Late 2023"]
[White "Erigaisi Arjun"]
[Black "Lorenzo De La Riva, Lazaro"]
[WhiteFideId "35009192"]
[BlackFideId "2268809"]
[WhiteElo "3150"]
[BlackElo "2509"]
[Result "1-0"]
[Round "1"]
[TimeControl "180+2"]
[Date "2023.07.04"]
[WhiteClock "0:01:08"]
[BlackClock "0:00:03"]
[Board "3"]

1. b3 {[%clk 0:02:59]}  Nf6 {[%clk 0:02:56]} 2. Bb2 {[%clk 0:02:59]}  d5 {[%clk 0:02:56]} 3. c4 {[%clk 0:02:58]}  e6 {[%clk 0:02:56]} 4. Nf3 {[%clk 0:02:57]}  Be7 {[%clk 0:02:56]} 5. e3 {[%clk 0:02:58]}  O-O {[%clk 0:02:56]} 6. Be2 {[%clk 0:02:58]}  c5 {[%clk 0:02:56]} 7. O-O {[%clk 0:02:58]}  Nc6 {[%clk 0:02:57]} 8. d4 {[%clk 0:02:58]}  b6 {[%clk 0:02:51]} 9. cxd5 {[%clk 0:02:56]}  Nxd5 {[%clk 0:02:44]} 10. dxc5 {[%clk 0:02:46]}  Bxc5 {[%clk 0:02:44]} 11. a3 {[%clk 0:02:44]}  Be7 {[%clk 0:02:44]} 12. b4 {[%clk 0:02:41]}  Bf6 {[%clk 0:02:43]} 13. Qb3 {[%clk 0:02:40]}  Bb7 {[%clk 0:02:37]} 14. Nbd2 {[%clk 0:02:38]}  Rc8 {[%clk 0:02:36]} 15. Ne4 {[%clk 0:02:36]}  Bxb2 {[%clk 0:02:35]} 16. Qxb2 {[%clk 0:02:37]}  Nce7 {[%clk 0:02:27]} 17. Rfd1 {[%clk 0:02:35]}  Qc7 {[%clk 0:02:07]} 18. Rac1 {[%clk 0:02:34]}  Qb8 {[%clk 0:02:08]} 19. Ng3 {[%clk 0:02:30]}  Rxc1 {[%clk 0:02:04]} 20. Rxc1 {[%clk 0:02:31]}  Rc8 {[%clk 0:02:04]} 21. Bd3 {[%clk 0:02:31]}  Rxc1+ {[%clk 0:02:01]} 22. Qxc1 {[%clk 0:02:32]}  Qc8 {[%clk 0:01:59]} 23. Qxc8+ {[%clk 0:02:28]}  Nxc8 {[%clk 0:02:00]} 24. Kf1 {[%clk 0:02:23]}  Kf8 {[%clk 0:01:57]} 25. Ne5 {[%clk 0:02:20]}  g6 {[%clk 0:01:50]} 26. Ne4 {[%clk 0:02:18]}  Ke7 {[%clk 0:01:49]} 27. h4 {[%clk 0:02:13]}  h5 {[%clk 0:01:45]} 28. Ke2 {[%clk 0:02:11]}  a5 {[%clk 0:01:29]} 29. bxa5 {[%clk 0:02:03]}  bxa5 {[%clk 0:01:30]} 30. Nc5 {[%clk 0:02:04]}  Nd6 {[%clk 0:01:23]} 31. g3 {[%clk 0:01:56]}  Nc3+ {[%clk 0:01:08]} 32. Ke1 {[%clk 0:01:50]}  Be4 {[%clk 0:00:46]} 33. Nxe4 {[%clk 0:01:46]}  Ncxe4 {[%clk 0:00:45]} 34. Nc6+ {[%clk 0:01:45]}  Kf6 {[%clk 0:00:41]} 35. Nxa5 {[%clk 0:01:41]}  Nc3 {[%clk 0:00:40]} 36. Nc4 {[%clk 0:01:36]}  Ndb5 {[%clk 0:00:35]} 37. Bc2 {[%clk 0:01:35]}  Nd5 {[%clk 0:00:32]} 38. Kd2 {[%clk 0:01:31]}  Na7 {[%clk 0:00:29]} 39. e4 {[%clk 0:01:29]}  Nc7 {[%clk 0:00:27]} 40. Ba4 {[%clk 0:01:28]}  Nc8 {[%clk 0:00:19]} 41. Bd7 {[%clk 0:01:26]}  Na7 {[%clk 0:00:18]} 42. Kd3 {[%clk 0:01:23]}  e5 {[%clk 0:00:15]} 43. f3 {[%clk 0:01:20]}  Ne6 {[%clk 0:00:13]} 44. Bxe6 {[%clk 0:01:19]}  Kxe6 {[%clk 0:00:14]} 45. a4 {[%clk 0:01:20]}  Nc6 {[%clk 0:00:13]} 46. a5 {[%clk 0:01:20]}  f5 {[%clk 0:00:14]} 47. Kc3 {[%clk 0:01:18]}  Nd4 {[%clk 0:00:10]} 48. a6 {[%clk 0:01:15]}  fxe4 {[%clk 0:00:08]} 49. fxe4 {[%clk 0:01:16]}  Kf6 {[%clk 0:00:08]} 50. Nd6 {[%clk 0:01:10]}  Nc6 {[%clk 0:00:06]} 51. Kc4 {[%clk 0:01:10]}  g5 {[%clk 0:00:05]} 52. Kc5 {[%clk 0:01:08]}  Na7 {[%clk 0:00:03]} 53. Kb6 {[%clk 0:01:08]} 1-0


[Site "https://www.chess.com"]

[Event "Titled Tuesday Blitz July 4 Late 2023"]
[White "Deng, Henry"]
[Black "Firouzja, Alireza"]
[WhiteFideId "30965454"]
[BlackFideId "12573981"]
[WhiteElo "2507"]
[BlackElo "3103"]
[Result "0-1"]
[Round "1"]
[TimeControl "180+2"]
[Date "2023.07.04"]
[WhiteClock "0:00:05"]
[BlackClock "0:00:08"]
[Board "6"]

1. e4 {[%clk 0:02:59]}  c6 {[%clk 0:02:59]} 2. d4 {[%clk 0:02:59]}  d5 {[%clk 0:03:00]} 3. Nd2 {[%clk 0:02:59]}  dxe4 {[%clk 0:03:00]} 4. Nxe4 {[%clk 0:03:00]}  Nf6 {[%clk 0:03:01]} 5. Nxf6+ {[%clk 0:03:00]}  exf6 {[%clk 0:03:02]} 6. c3 {[%clk 0:02:59]}  Bd6 {[%clk 0:03:03]} 7. Bd3 {[%clk 0:03:00]}  O-O {[%clk 0:03:03]} 8. Qc2 {[%clk 0:03:00]}  Re8+ {[%clk 0:03:03]} 9. Ne2 {[%clk 0:03:01]}  h5 {[%clk 0:03:04]} 10. O-O {[%clk 0:03:01]}  Nd7 {[%clk 0:03:05]} 11. Ng3 {[%clk 0:03:00]}  Qa5 {[%clk 0:02:55]} 12. b4 {[%clk 0:02:48]}  Qc7 {[%clk 0:02:36]} 13. f4 {[%clk 0:02:46]}  h4 {[%clk 0:02:29]} 14. Nf5 {[%clk 0:02:41]}  h3 {[%clk 0:02:30]} 15. gxh3 {[%clk 0:02:38]}  Nb6 {[%clk 0:02:23]} 16. Nxd6 {[%clk 0:02:34]}  Qxd6 {[%clk 0:02:24]} 17. f5 {[%clk 0:02:34]}  Nd5 {[%clk 0:02:22]} 18. a3 {[%clk 0:02:24]}  Ne3 {[%clk 0:02:12]} 19. Bxe3 {[%clk 0:02:23]}  Rxe3 {[%clk 0:02:13]} 20. Rae1 {[%clk 0:02:13]}  Rxe1 {[%clk 0:02:07]} 21. Rxe1 {[%clk 0:02:13]}  Bd7 {[%clk 0:02:08]} 22. Qf2 {[%clk 0:02:07]}  a5 {[%clk 0:01:56]} 23. Bc4 {[%clk 0:01:36]}  b5 {[%clk 0:01:52]} 24. Bb3 {[%clk 0:01:31]}  axb4 {[%clk 0:01:51]} 25. axb4 {[%clk 0:01:31]}  Ra3 {[%clk 0:01:47]} 26. Qb2 {[%clk 0:01:31]}  Ra8 {[%clk 0:01:46]} 27. Qe2 {[%clk 0:01:23]}  Bxf5 {[%clk 0:01:36]} 28. Qe7 {[%clk 0:01:22]}  Qxe7 {[%clk 0:01:34]} 29. Rxe7 {[%clk 0:01:22]}  Rf8 {[%clk 0:01:35]} 30. Rc7 {[%clk 0:01:18]}  Be4 {[%clk 0:01:35]} 31. Kf2 {[%clk 0:01:15]}  g5 {[%clk 0:01:34]} 32. Ke3 {[%clk 0:01:07]}  f5 {[%clk 0:01:33]} 33. Rd7 {[%clk 0:00:55]}  Kg7 {[%clk 0:01:30]} 34. d5 {[%clk 0:00:56]}  cxd5 {[%clk 0:01:23]} 35. Bxd5 {[%clk 0:00:53]}  Rh8 {[%clk 0:01:24]} 36. Bxe4 {[%clk 0:00:31]}  Rxh3+ {[%clk 0:01:21]} 37. Kd4 {[%clk 0:00:29]}  fxe4 {[%clk 0:01:12]} 38. Kxe4 {[%clk 0:00:30]}  Rxc3 {[%clk 0:00:59]} 39. Rd5 {[%clk 0:00:30]}  Rc4+ {[%clk 0:00:57]} 40. Ke3 {[%clk 0:00:30]}  Rxb4 {[%clk 0:00:38]} 41. Rxg5+ {[%clk 0:00:30]}  Kh6 {[%clk 0:00:39]} 42. Rf5 {[%clk 0:00:25]}  Kg6 {[%clk 0:00:38]} 43. Rc5 {[%clk 0:00:22]}  Rb1 {[%clk 0:00:36]} 44. Kd3 {[%clk 0:00:20]}  f5 {[%clk 0:00:32]} 45. Kc2 {[%clk 0:00:20]}  Rb4 {[%clk 0:00:28]} 46. Kc3 {[%clk 0:00:20]}  Rh4 {[%clk 0:00:27]} 47. Rxb5 {[%clk 0:00:20]}  Rxh2 {[%clk 0:00:28]} 48. Kd3 {[%clk 0:00:20]}  Kg5 {[%clk 0:00:28]} 49. Ke3 {[%clk 0:00:21]}  Kg4 {[%clk 0:00:28]} 50. Rb4+ {[%clk 0:00:20]}  Kg3 {[%clk 0:00:25]} 51. Rf4 {[%clk 0:00:21]}  Rh5 {[%clk 0:00:20]} 52. Rf3+ {[%clk 0:00:21]}  Kg4 {[%clk 0:00:20]} 53. Rf4+ {[%clk 0:00:21]}  Kg5 {[%clk 0:00:21]} 54. Rf1 {[%clk 0:00:21]}  Rh3+ {[%clk 0:00:17]} 55. Kf2 {[%clk 0:00:22]}  Kg4 {[%clk 0:00:17]} 56. Rg1+ {[%clk 0:00:21]}  Kf4 {[%clk 0:00:16]} 57. Ra1 {[%clk 0:00:20]}  Rf3+ {[%clk 0:00:11]} 58. Kg2 {[%clk 0:00:20]}  Rb3 {[%clk 0:00:08]} 59. Ra4+ {[%clk 0:00:20]}  Ke3 {[%clk 0:00:06]} 60. Ra8 {[%clk 0:00:18]}  Rb2+ {[%clk 0:00:04]} 61. Kf1 {[%clk 0:00:18]}  Kf3 {[%clk 0:00:02]} 62. Ra3+ {[%clk 0:00:18]}  Kg4 {[%clk 0:00:02]} 63. Rc3 {[%clk 0:00:18]}  f4 {[%clk 0:00:02]} 64. Ra3 {[%clk 0:00:18]}  Rc2 {[%clk 0:00:03]} 65. Rb3 {[%clk 0:00:18]}  Rc4 {[%clk 0:00:03]} 66. Ra3 {[%clk 0:00:19]}  Rc5 {[%clk 0:00:03]} 67. Rb3 {[%clk 0:00:19]}  Kf5 {[%clk 0:00:04]} 68. Ra3 {[%clk 0:00:20]}  Rd5 {[%clk 0:00:04]} 69. Rb3 {[%clk 0:00:20]}  Re5 {[%clk 0:00:05]} 70. Ra3 {[%clk 0:00:21]}  Kg4 {[%clk 0:00:05]} 71. Rb3 {[%clk 0:00:21]}  Rg5 {[%clk 0:00:06]} 72. Ra3 {[%clk 0:00:21]}  Kh4 {[%clk 0:00:07]} 73. Rb3 {[%clk 0:00:22]}  Rg3 {[%clk 0:00:07]} 74. Rxg3 {[%clk 0:00:07]}  Kxg3 {[%clk 0:00:07]} 75. Kg1 {[%clk 0:00:06]}  f3 {[%clk 0:00:08]} 76. Kf1 {[%clk 0:00:05]}  f2 {[%clk 0:00:08]} 0-1


[Site "https://www.chess.com"]

[Event "Titled Tuesday Blitz July 4 Late 2023"]
[White "Liu, Casper"]
[Black "Mamedov, Rauf"]
[WhiteFideId "1454153"]
[BlackFideId "13401653"]
[WhiteElo "2505"]
[BlackElo "3046"]
[Result "0-1"]
[Round "1"]
[TimeControl "180+2"]
[Date "2023.07.04"]
[WhiteClock "0:00:56"]
[BlackClock "0:00:56"]
[Board "8"]

1. e4 {[%clk 0:02:57]}  c5 {[%clk 0:02:59]} 2. d4 {[%clk 0:02:58]}  cxd4 {[%clk 0:02:56]} 3. Qxd4 {[%clk 0:02:59]}  Nc6 {[%clk 0:02:55]} 4. Qe3 {[%clk 0:02:59]}  g6 {[%clk 0:02:52]} 5. Nc3 {[%clk 0:03:00]}  Bg7 {[%clk 0:02:52]} 6. Bd2 {[%clk 0:03:00]}  d6 {[%clk 0:02:52]} 7. O-O-O {[%clk 0:03:01]}  Nf6 {[%clk 0:02:52]} 8. Nd5 {[%clk 0:03:00]}  Be6 {[%clk 0:02:50]} 9. Bc3 {[%clk 0:02:59]}  O-O {[%clk 0:02:46]} 10. Nxf6+ {[%clk 0:02:58]}  exf6 {[%clk 0:02:47]} 11. Kb1 {[%clk 0:02:55]}  Rc8 {[%clk 0:02:46]} 12. h4 {[%clk 0:02:54]}  h5 {[%clk 0:02:45]} 13. Nf3 {[%clk 0:02:53]}  Re8 {[%clk 0:02:38]} 14. Nd4 {[%clk 0:02:53]}  Nxd4 {[%clk 0:02:37]} 15. Qxd4 {[%clk 0:02:54]}  Qd7 {[%clk 0:02:14]} 16. Qxd6 {[%clk 0:02:51]}  Qa4 {[%clk 0:02:14]} 17. a3 {[%clk 0:02:40]}  Rxc3 {[%clk 0:01:54]} 18. bxc3 {[%clk 0:02:40]}  Bf8 {[%clk 0:01:54]} 19. Qc7 {[%clk 0:01:26]}  Qxa3 {[%clk 0:01:49]} 20. c4 {[%clk 0:01:26]}  Qb4+ {[%clk 0:01:17]} 21. Ka2 {[%clk 0:01:16]}  Rc8 {[%clk 0:01:16]} 22. Qg3 {[%clk 0:01:14]}  Rc6 {[%clk 0:01:03]} 23. Qb3 {[%clk 0:01:11]}  Qa5+ {[%clk 0:01:03]} 24. Kb2 {[%clk 0:01:11]}  Rb6 {[%clk 0:01:03]} 25. Ra1 {[%clk 0:01:04]}  Qe5+ {[%clk 0:01:01]} 26. Ka2 {[%clk 0:01:00]}  Rxb3 {[%clk 0:00:59]} 27. cxb3 {[%clk 0:01:01]}  Qc3 {[%clk 0:00:57]} 28. Rb1 {[%clk 0:00:57]}  Bc5 {[%clk 0:00:57]} 29. Rb2 {[%clk 0:00:56]}  Bd4 {[%clk 0:00:56]} 0-1


[Site "https://www.chess.com"]

[Event "Titled Tuesday Blitz July 4 Late 2023"]
[White "Lazavik, Denis"]
[Black "a-z30"]
[WhiteFideId "13515110"]
[WhiteElo "3043"]
[BlackElo "2504"]
[Result "1-0"]
[Round "1"]
[TimeControl "180+2"]
[Date "2023.07.04"]
[WhiteClock "0:01:51"]
[BlackClock "0:00:00"]
[Board "9"]

1. d4 {[%clk 0:02:55]}  d6 {[%clk 0:03:00]} 2. Nf3 {[%clk 0:02:54]}  Nf6 {[%clk 0:03:01]} 3. c4 {[%clk 0:02:55]}  g6 {[%clk 0:03:02]} 4. g3 {[%clk 0:02:55]}  Bg7 {[%clk 0:03:02]} 5. Bg2 {[%clk 0:02:55]}  O-O {[%clk 0:03:03]} 6. O-O {[%clk 0:02:56]}  c6 {[%clk 0:03:03]} 7. Nc3 {[%clk 0:02:56]}  Bf5 {[%clk 0:03:03]} 8. Ne1 {[%clk 0:02:55]}  d5 {[%clk 0:03:02]} 9. Qb3 {[%clk 0:02:49]}  Qb6 {[%clk 0:02:40]} 10. cxd5 {[%clk 0:02:47]}  Qxb3 {[%clk 0:02:27]} 11. axb3 {[%clk 0:02:47]}  cxd5 {[%clk 0:02:27]} 12. Nxd5 {[%clk 0:02:47]}  Nxd5 {[%clk 0:02:06]} 13. Bxd5 {[%clk 0:02:48]}  Nc6 {[%clk 0:02:06]} 14. e3 {[%clk 0:02:48]}  Rfd8 {[%clk 0:01:41]} 15. Bg2 {[%clk 0:02:46]}  e5 {[%clk 0:01:40]} 16. d5 {[%clk 0:02:43]}  Nb4 {[%clk 0:01:39]} 17. e4 {[%clk 0:02:43]}  Bd7 {[%clk 0:01:31]} 18. Bd2 {[%clk 0:02:42]}  Na6 {[%clk 0:01:18]} 19. Nc2 {[%clk 0:02:30]}  Nc5 {[%clk 0:01:06]} 20. Ra3 {[%clk 0:02:28]}  Bb5 {[%clk 0:01:00]} 21. Re1 {[%clk 0:02:25]}  a6 {[%clk 0:00:42]} 22. Bf1 {[%clk 0:02:22]}  Bxf1 {[%clk 0:00:38]} 23. Kxf1 {[%clk 0:02:23]}  Bf8 {[%clk 0:00:37]} 24. b4 {[%clk 0:02:22]}  Nd7 {[%clk 0:00:31]} 25. Rc3 {[%clk 0:02:22]}  Rdc8 {[%clk 0:00:22]} 26. Rc1 {[%clk 0:02:22]}  Nb6 {[%clk 0:00:17]} 27. Ne3 {[%clk 0:02:21]}  Be7 {[%clk 0:00:03]} 28. Rxc8+ {[%clk 0:02:20]}  Rxc8 {[%clk 0:00:03]} 29. Rxc8+ {[%clk 0:02:19]}  Nxc8 {[%clk 0:00:04]} 30. Ke2 {[%clk 0:02:20]}  f6 {[%clk 0:00:02]} 31. Kd3 {[%clk 0:02:20]}  Nd6 {[%clk 0:00:01]} 32. Nc4 {[%clk 0:02:20]}  Nxc4 {[%clk 0:00:01]} 33. Kxc4 {[%clk 0:02:20]}  b5+ {[%clk 0:00:02]} 34. Kc3 {[%clk 0:02:17]}  Kf7 {[%clk 0:00:03]} 35. Be3 {[%clk 0:02:17]}  Ke8 {[%clk 0:00:02]} 36. Bc5 {[%clk 0:02:17]}  Bd8 {[%clk 0:00:03]} 37. Kd3 {[%clk 0:02:14]}  Kd7 {[%clk 0:00:03]} 38. f4 {[%clk 0:02:14]}  h5 {[%clk 0:00:03]} 39. h4 {[%clk 0:01:59]}  Bc7 {[%clk 0:00:03]} 40. Ke3 {[%clk 0:01:54]}  Bd8 {[%clk 0:00:02]} 41. f5 {[%clk 0:01:50]}  gxf5 {[%clk 0:00:00]} 42. exf5 {[%clk 0:01:51]} 1-0


[Site "https://www.chess.com"]

[Event "Titled Tuesday Blitz July 4 Late 2023"]
[White "Tahbaz, Arash"]
[Black "Kanyamarala, Tarun"]
[WhiteFideId "12528846"]
[BlackFideId "45004714"]
[WhiteElo "3001"]
[BlackElo "2497"]
[Result "1-0"]
[Round "1"]
[TimeControl "180+2"]
[Date "2023.07.04"]
[WhiteClock "0:00:16"]
[BlackClock "0:00:00"]
[Board "15"]

1. Nf3 {[%clk 0:02:59]}  d5 {[%clk 0:02:58]} 2. g3 {[%clk 0:02:59]}  Nd7 {[%clk 0:02:57]} 3. Bg2 {[%clk 0:02:59]}  e5 {[%clk 0:02:56]} 4. O-O {[%clk 0:02:59]}  Ngf6 {[%clk 0:02:57]} 5. d3 {[%clk 0:02:58]}  c6 {[%clk 0:02:53]} 6. Nbd2 {[%clk 0:02:50]}  Bc5 {[%clk 0:02:53]} 7. e4 {[%clk 0:02:50]}  dxe4 {[%clk 0:02:52]} 8. dxe4 {[%clk 0:02:51]}  O-O {[%clk 0:02:51]} 9. b3 {[%clk 0:02:51]}  Qe7 {[%clk 0:02:49]} 10. a4 {[%clk 0:02:48]}  a5 {[%clk 0:02:39]} 11. Bb2 {[%clk 0:02:47]}  b6 {[%clk 0:02:37]} 12. Nc4 {[%clk 0:02:36]}  Ba6 {[%clk 0:02:25]} 13. Qe2 {[%clk 0:02:36]}  Rfe8 {[%clk 0:02:17]} 14. Rad1 {[%clk 0:02:16]}  h6 {[%clk 0:01:43]} 15. Bh3 {[%clk 0:02:10]}  Rad8 {[%clk 0:01:38]} 16. Kg2 {[%clk 0:02:01]}  Kh7 {[%clk 0:01:03]} 17. Rfe1 {[%clk 0:01:59]}  Kg8 {[%clk 0:00:56]} 18. Nh4 {[%clk 0:01:53]}  Nf8 {[%clk 0:00:49]} 19. Nf5 {[%clk 0:01:48]}  Qc7 {[%clk 0:00:48]} 20. Qf3 {[%clk 0:01:44]}  N6h7 {[%clk 0:00:45]} 21. Bc1 {[%clk 0:01:39]}  Bxc4 {[%clk 0:00:43]} 22. bxc4 {[%clk 0:01:40]}  Ne6 {[%clk 0:00:42]} 23. c3 {[%clk 0:01:30]}  Nhg5 {[%clk 0:00:40]} 24. Qg4 {[%clk 0:01:30]}  Rxd1 {[%clk 0:00:33]} 25. Rxd1 {[%clk 0:01:29]}  Rd8 {[%clk 0:00:33]} 26. Rxd8+ {[%clk 0:01:03]}  Qxd8 {[%clk 0:00:32]} 27. Qe2 {[%clk 0:01:04]}  Nxh3 {[%clk 0:00:30]} 28. Kxh3 {[%clk 0:01:04]}  Qd7 {[%clk 0:00:20]} 29. Kg2 {[%clk 0:01:04]}  Kh7 {[%clk 0:00:19]} 30. h4 {[%clk 0:01:03]}  Bf8 {[%clk 0:00:14]} 31. h5 {[%clk 0:01:00]}  g6 {[%clk 0:00:14]} 32. hxg6+ {[%clk 0:01:00]}  fxg6 {[%clk 0:00:15]} 33. Nh4 {[%clk 0:01:00]}  Nc5 {[%clk 0:00:12]} 34. Ba3 {[%clk 0:01:00]}  Be7 {[%clk 0:00:10]} 35. Bxc5 {[%clk 0:00:57]}  Bxc5 {[%clk 0:00:10]} 36. Nf3 {[%clk 0:00:58]}  Qe6 {[%clk 0:00:08]} 37. Qd3 {[%clk 0:00:55]}  Bd6 {[%clk 0:00:05]} 38. Qb1 {[%clk 0:00:50]}  Bc7 {[%clk 0:00:03]} 39. c5 {[%clk 0:00:38]}  bxc5 {[%clk 0:00:03]} 40. Qb7 {[%clk 0:00:39]}  Qe7 {[%clk 0:00:02]} 41. Qxc6 {[%clk 0:00:39]}  Kg7 {[%clk 0:00:03]} 42. Nd2 {[%clk 0:00:29]}  Qd6 {[%clk 0:00:03]} 43. Qd5 {[%clk 0:00:28]}  Qxd5 {[%clk 0:00:02]} 44. exd5 {[%clk 0:00:29]}  Kf6 {[%clk 0:00:03]} 45. Ne4+ {[%clk 0:00:25]}  Ke7 {[%clk 0:00:03]} 46. Nxc5 {[%clk 0:00:19]}  Kd6 {[%clk 0:00:02]} 47. Ne6 {[%clk 0:00:20]}  Bb6 {[%clk 0:00:01]} 48. c4 {[%clk 0:00:20]}  e4 {[%clk 0:00:01]} 49. f3 {[%clk 0:00:18]}  e3 {[%clk 0:00:00]} 50. Kf1 {[%clk 0:00:16]} 1-0


[Site "https://www.chess.com"]

[Event "Titled Tuesday Blitz July 4 Late 2023"]
[White "Deac, Bogdan-Daniel"]
[Black "Reprintsev, Alexander"]
[WhiteFideId "1226380"]
[BlackFideId "14100541"]
[WhiteElo "2996"]
[BlackElo "2497"]
[Result "1-0"]
[Round "1"]
[TimeControl "180+2"]
[Date "2023.07.04"]
[WhiteClock "0:00:55"]
[BlackClock "0:00:17"]
[Board "17"]

1. b3 {[%clk 0:03:00]}  e5 {[%clk 0:02:52]} 2. Bb2 {[%clk 0:03:01]}  Nc6 {[%clk 0:02:51]} 3. Nf3 {[%clk 0:03:01]}  e4 {[%clk 0:02:49]} 4. Nd4 {[%clk 0:03:02]}  Qf6 {[%clk 0:02:45]} 5. e3 {[%clk 0:03:01]}  Bc5 {[%clk 0:02:44]} 6. c3 {[%clk 0:02:51]}  d5 {[%clk 0:02:41]} 7. d3 {[%clk 0:02:40]}  Ne5 {[%clk 0:02:34]} 8. dxe4 {[%clk 0:02:31]}  dxe4 {[%clk 0:02:29]} 9. Nd2 {[%clk 0:02:31]}  Qg6 {[%clk 0:02:19]} 10. c4 {[%clk 0:02:25]}  Nd3+ {[%clk 0:02:05]} 11. Bxd3 {[%clk 0:02:24]}  exd3 {[%clk 0:01:58]} 12. Qf3 {[%clk 0:02:24]}  Nf6 {[%clk 0:01:55]} 13. Nb5 {[%clk 0:02:23]}  O-O {[%clk 0:01:40]} 14. Bxf6 {[%clk 0:02:14]}  gxf6 {[%clk 0:01:35]} 15. Nxc7 {[%clk 0:02:13]}  Bg4 {[%clk 0:01:35]} 16. Qg3 {[%clk 0:02:10]}  Rac8 {[%clk 0:01:34]} 17. Nd5 {[%clk 0:02:08]}  Kg7 {[%clk 0:01:27]} 18. Nf4 {[%clk 0:02:04]}  Bd6 {[%clk 0:01:22]} 19. Nxg6 {[%clk 0:01:57]}  Bxg3 {[%clk 0:01:22]} 20. Nxf8 {[%clk 0:01:58]}  Be5 {[%clk 0:01:18]} 21. Rc1 {[%clk 0:01:31]}  Rxf8 {[%clk 0:01:10]} 22. Nf3 {[%clk 0:01:22]}  Bc7 {[%clk 0:01:03]} 23. Kd2 {[%clk 0:01:18]}  Rd8 {[%clk 0:01:02]} 24. b4 {[%clk 0:01:18]}  a5 {[%clk 0:01:01]} 25. a3 {[%clk 0:01:16]}  axb4 {[%clk 0:00:58]} 26. axb4 {[%clk 0:01:17]}  Bf5 {[%clk 0:00:55]} 27. Nd4 {[%clk 0:01:11]}  Bg6 {[%clk 0:00:51]} 28. Rc3 {[%clk 0:01:08]}  Be5 {[%clk 0:00:48]} 29. Rxd3 {[%clk 0:01:07]}  Bxd3 {[%clk 0:00:47]} 30. Kxd3 {[%clk 0:01:08]}  Ra8 {[%clk 0:00:45]} 31. Rc1 {[%clk 0:01:07]}  Ra3+ {[%clk 0:00:37]} 32. Rc3 {[%clk 0:01:04]}  Ra2 {[%clk 0:00:37]} 33. Rc2 {[%clk 0:01:04]}  Ra3+ {[%clk 0:00:37]} 34. Ke4 {[%clk 0:01:04]}  Kg6 {[%clk 0:00:34]} 35. g3 {[%clk 0:00:58]}  h5 {[%clk 0:00:24]} 36. h4 {[%clk 0:00:57]}  Bc7 {[%clk 0:00:21]} 37. Nb5 {[%clk 0:00:56]}  f5+ {[%clk 0:00:17]} 38. Kf3 {[%clk 0:00:55]} 1-0


[Site "https://www.chess.com"]